bitfinex/quotes_ETHUSD_20250807
["timestamp","ask_amount","ask_price","bid_price","bid_amount"]
[1754567761789,1.3905,3835.2,3835.1,4.3]
[1754567762298,1.3905,3835.2,3835.0,6.90856167]
[1754567762478,0.4635,3835.2,3835.1,2.60749393]
[1754567762995,0.002,3835.4,3835.3,2.60735796]
[1754567763191,0.929,3835.4,3835.2,2.60740758]
[1754567763405,0.4655,3835.4,3835.2,2.60740758]
[1754567763593,0.927,3835.3,3835.2,2.60740758]
[1754567763899,0.927,3835.3,3835.1,2.60746704]
[1754567764200,0.4655,3835.4,3835.1,2.60746704]
[1754567764201,1.3905,3835.2,3835.1,2.60746704]
[1754567766674,15.8905,3835.2,3835.1,2.60746704]
[1754567769308,15.8905,3835.2,3835.0,6.90854429]
[1754567769609,1.3905,3835.1,3835.0,6.90854429]
[1754567770210,15.8905,3835.1,3835.0,6.90854429]
[1754567770709,0.002,3835.4,3835.3,2.60735796]
[1754567770908,1.3905,3835.3,3835.0,6.90255802]
[1754567771232,15.427,3835.2,3835.1,2.60749393]
[1754567772674,0.002,3835.4,3835.1,2.60749393]
[1754567772875,0.002,3835.4,3835.3,2.60735796]
[1754567773419,0.002,3835.4,3835.3,2.60885796]
[1754567774205,0.002,3835.4,3835.3,2.60735796]
[1754567774401,0.002,3835.4,3835.3,5.60735796]
[1754567774611,0.002,3835.4,3835.3,5.60885796]
[1754567774806,0.002,3835.4,3835.3,7.83741957]
[1754567775126,0.002,3835.4,3835.3,7.83591957]
[1754567775727,0.002,3836.2,3835.8,5.60701809]
[1754567775894,0.002,3836.2,3835.8,9.89801809]
[1754567776288,0.002,3836.2,3835.8,11.14852983]
[1754567779020,0.002,3836.2,3835.8,9.89801809]
[1754567779316,1.3925,3835.9,3835.8,6.89601809]
[1754567779793,0.002,3835.9,3835.8,6.89601809]
[1754567779933,1e-08,3835.9,3835.8,10.44751809]
[1754567780135,1e-08,3835.9,3835.8,12.89601523]
[1754567780899,1e-08,3836.3,3836.2,3.55]
[1754567781202,1e-08,3836.3,3836.2,19.26700126]
[1754567781518,1e-08,3836.3,3836.2,10.44274625]
[1754567782207,1e-08,3836.3,3836.2,6.15674625]
[1754567782410,1e-08,3836.3,3836.2,10.43254387]
[1754567783030,1e-08,3836.3,3836.2,5.60674625]
[1754567783231,1e-08,3836.3,3836.2,9.89174625]
[1754567784237,0.85360001,3836.3,3836.2,6.89174625]
[1754567784440,1.28230001,3836.3,3836.2,6.89074625]
[1754567784649,1.28230001,3836.3,3836.2,2.60674625]
[1754567784854,15.78230001,3836.3,3836.2,6.89074625]
[1754567785207,15.78230001,3836.3,3836.2,2.60674625]
[1754567785429,15.78230001,3836.3,3836.2,4.283]
[1754567785750,15.78230001,3836.3,3836.2,6.88974625]
[1754567786746,15.78230001,3836.3,3836.2,2.60674625]
[1754567787041,15.78230001,3836.3,3836.2,6.88974625]
[1754567787821,1e-08,3836.3,3836.2,16.66266199]
[1754567788143,1e-08,3836.3,3836.2,19.66266199]
[1754567788504,1e-08,3836.3,3836.2,19.66066199]
[1754567789210,1e-08,3836.3,3836.2,10.83740698]
[1754567789638,1e-08,3836.3,3836.2,9.88774625]
[1754567790047,0.85360001,3836.3,3836.2,9.88774625]
[1754567790564,1e-08,3836.3,3836.2,14.18774625]
[1754567791650,1e-08,3836.3,3836.2,9.88774625]
[1754567791950,1e-08,3836.3,3836.2,12.01953248]
[1754567793034,1e-08,3836.3,3836.2,21.39428749]
[1754567794266,1e-08,3836.3,3836.2,17.11178749]
[1754567794419,1e-08,3836.3,3836.2,21.38978749]
[1754567794772,1e-08,3836.3,3836.2,7.73853248]
[1754567794913,1e-08,3836.3,3836.2,12.01553248]
[1754567795314,1e-08,3836.3,3836.2,20.83878749]
[1754567795511,1e-08,3836.3,3836.2,7.73853248]
[1754567795718,1.28230001,3836.3,3836.2,5.60674625]
[1754567796046,1.28230001,3836.3,3836.2,9.88274625]
[1754567796438,1.28230001,3836.3,3836.2,5.60674625]
[1754567796753,1.28230001,3836.3,3836.2,9.88274625]
[1754567797052,1.28230001,3836.3,3836.2,5.60674625]
[1754567797259,1.28230001,3836.3,3836.2,9.88174625]
[1754567798149,1.28230001,3836.3,3836.2,5.60674625]
[1754567798589,1.28230001,3836.3,3836.2,9.88074625]
[1754567800183,1e-08,3836.3,3836.2,9.88074625]
[1754567800677,1e-08,3836.3,3836.2,16.56108749]
[1754567800884,1e-08,3836.3,3836.2,20.83408749]
[1754567802251,0.85360001,3836.3,3836.2,20.83408749]
[1754567802455,1e-08,3836.3,3836.2,20.83408749]
[1754567802756,1e-08,3836.3,3836.2,16.56108749]
[1754567802950,1e-08,3836.3,3836.2,20.83208749]
[1754567803486,1e-08,3836.3,3836.2,21.38208749]
[1754567804350,1e-08,3836.3,3836.2,12.00883248]
[1754567805956,0.85360001,3836.3,3836.2,12.00883248]
[1754567806594,1e-08,3836.3,3836.2,12.00883248]
[1754567808899,1e-08,3836.3,3835.4,0.001]
[1754567808900,1.41270001,3836.3,3835.4,0.001]
[1754567809058,0.1304,3835.8,3835.7,2.60708605]
[1754567809263,1.2823,3835.8,3835.7,4.267]
[1754567809597,1.2823,3835.8,3835.5,2.60721914]
[1754567809826,1e-08,3836.3,3835.6,4.267]
[1754567810093,1.2823,3835.7,3835.6,4.267]
[1754567812107,1.2823,3835.7,3835.6,6.87415403]
[1754567812613,1e-08,3836.3,3835.8,2.60699286]
[1754567812815,1e-08,3836.3,3836.2,5.60674625]
[1754567812976,1e-08,3836.3,3836.2,12.00454154]
[1754567814218,1.28470001,3836.3,3836.2,3.0]
[1754567814388,1.28470001,3836.3,3836.2,9.87074625]
[1754567815212,1e-08,3836.3,3836.2,9.87074625]
[1754567815585,1e-08,3836.3,3836.2,18.69400126]
[1754567815890,1e-08,3836.3,3836.2,21.6541868]
[1754567816087,1e-08,3836.3,3836.2,22.2041868]
[1754567816316,0.002,3837.1,3836.7,0.55]
[1754567816625,2.60712466,3838.6,3837.4,3.15593109]
[1754567816626,1e-08,3837.5,3837.4,3.15593109]
[1754567816786,1e-08,3837.5,3837.4,25.53024541]
[1754567816989,1e-08,3837.5,3837.4,29.6267641]
[1754567817298,1e-08,3838.4,3838.3,3.15532006]
[1754567817695,1e-08,3838.4,3838.3,10.41832006]
[1754567818218,1e-08,3838.4,3838.3,9.86832006]
[1754567818421,0.46020001,3838.4,3838.3,9.86832006]
[1754567818926,1e-08,3838.4,3838.3,9.86732006]
[1754567819805,1e-08,3838.4,3838.3,9.86632006]
[1754567820435,1.28470001,3838.4,3838.3,9.86632006]
[1754567820615,1.28470001,3838.4,3838.3,3.0]
[1754567820794,1.28470001,3838.4,3838.3,5.60532006]
[1754567820996,1.28470001,3838.4,3838.3,9.86532006]
[1754567821298,1.28470001,3838.4,3838.3,7.26]
[1754567821514,1.28470001,3838.4,3838.3,5.60532006]
[1754567821828,1.28470001,3838.4,3838.3,7.26]
[1754567822337,1.28470001,3838.4,3838.3,9.86532006]
[1754567823023,1.28470001,3838.4,3838.3,7.26]
[1754567823321,1.28470001,3838.4,3838.3,4.26]
[1754567823516,1.28470001,3838.4,3838.3,4.259]
[1754567823917,3.88995268,3838.4,3838.3,4.259]
[1754567824131,4.53986435,3838.4,3838.3,4.259]
[1754567824722,19.03986435,3838.4,3838.3,4.259]
[1754567825940,16.43461168,3838.4,3838.3,4.259]
[1754567826102,19.03986386,3838.4,3838.3,4.259]
[1754567827019,2.60532006,3838.3,3838.2,4.257]
[1754567827196,2.16471839,3838.3,3838.2,4.257]
[1754567827404,3.44941839,3838.3,3838.2,4.257]
[1754567827953,1e-08,3838.4,3838.3,2.60532006]
[1754567828536,1.28470001,3838.4,3837.5,3.0]
[1754567828705,1.28470001,3838.4,3838.2,2.60538669]
[1754567828906,1.2847,3838.3,3838.2,6.86138669]
[1754567829139,1.2847,3838.3,3838.2,4.256]
[1754567829302,1.2847,3838.3,3837.8,2.60561418]
[1754567829636,1.2847,3838.2,3837.9,6.86159037]
[1754567829851,1e-08,3838.4,3837.9,6.86159037]
[1754567830135,1.2847,3838.1,3837.9,6.86159037]
[1754567830341,1e-08,3838.4,3837.9,6.86159037]
[1754567830545,1.2847,3838.3,3837.9,6.86159037]
[1754567830841,5.60591047,3837.5,3835.3,0.8301]
[1754567831135,14.5,3836.2,3835.5,4.255]
[1754567831336,1.2847,3836.1,3835.4,0.001]
[1754567831535,2.607222,3835.5,3835.4,0.001]
[1754567832098,3.067422,3835.5,3835.4,0.001]
[1754567833039,0.1304,3835.6,3835.4,0.001]
[1754567833419,2.607222,3835.5,3835.4,0.001]
[1754567833825,3.067422,3835.5,3835.4,0.001]
[1754567834230,0.4602,3835.5,3835.4,0.001]
[1754567835116,14.5,3835.5,3835.4,4.257]
[1754567835318,14.5,3835.5,3835.4,5.0871]
[1754567836630,14.5,3835.5,3835.4,4.257]
[1754567839544,14.5,3835.5,3835.4,6.86428998]
[1754567839960,14.5,3835.5,3835.4,8.14498998]
[1754567840145,3.06682851,3836.4,3835.7,2.60707018]
[1754567840357,4.14529254,3836.4,3835.8,4.256]
[1754567840677,14.5,3836.3,3835.8,4.256]
[1754567841048,0.428,3836.2,3835.8,4.256]
[1754567841244,0.428,3836.1,3835.8,4.256]
[1754567841662,14.5,3836.0,3835.8,4.256]
[1754567842039,14.5,3836.0,3835.8,6.86301382]
[1754567842373,14.5,3836.0,3835.9,3.45695012]
[1754567842858,14.5,3836.0,3835.9,0.85]
[1754567843566,14.5,3836.0,3835.8,6.86300301]
[1754567843774,14.5,3836.0,3835.9,4.3]
[1754567846336,19.96490061,3836.0,3835.9,4.3]
[1754567846532,19.96490061,3836.0,3835.9,8.555]
[1754567846731,16.50261845,3836.0,3835.9,4.3]
[1754567847340,16.50261845,3836.0,3835.9,8.555]
[1754567847733,19.96490061,3836.0,3835.9,4.3]
[1754567849471,19.10950061,3836.0,3835.9,4.3]
[1754567849674,2.607222,3835.5,3835.4,0.001]
[1754567849877,6.862222,3835.5,3835.4,0.001]
[1754567850174,8.145622,3835.5,3835.4,0.001]
[1754567850373,9.74625185,3835.5,3835.4,0.001]
[1754567851063,12.74625185,3835.5,3835.4,0.001]
[1754567851272,13.82471588,3835.5,3835.4,0.001]
[1754567852892,9.96931588,3835.5,3835.4,0.001]
[1754567853405,24.46931588,3835.5,3835.4,0.001]
[1754567854303,20.21431588,3835.5,3835.4,0.001]
[1754567854594,24.46931588,3835.5,3835.4,0.001]
[1754567854769,21.43309388,3835.5,3834.9,2.60762931]
[1754567855106,20.35462985,3835.5,3835.0,0.4325]
[1754567855392,20.35462985,3835.5,3835.1,0.4325]
[1754567855606,20.35462985,3835.5,3834.9,2.60761242]
[1754567855763,22.96185596,3835.5,3834.9,2.60761242]
[1754567855965,2.60730385,3835.4,3834.7,2.60776068]
[1754567856167,2.60735043,3835.4,3834.7,2.60775918]
[1754567856361,2.60737827,3835.3,3834.7,2.60775918]
[1754567856586,6.86141732,3835.3,3834.6,6.86382377]
[1754567856905,6.86141732,3835.3,3834.7,0.85]
[1754567857075,4.254,3835.3,3834.7,0.85]
[1754567857275,16.52862985,3835.5,3834.7,0.85]
[1754567857590,16.10062985,3835.5,3834.8,3.04019792]
[1754567857790,16.10062985,3835.5,3834.9,3.45757251]
[1754567857969,16.10062985,3835.5,3835.2,2.60741117]
[1754567858297,16.10062985,3835.5,3835.3,0.85]
[1754567858500,16.10062985,3835.5,3835.3,0.8]
[1754567859804,18.70785383,3835.5,3835.0,0.4325]
[1754567859992,18.70785383,3835.5,3834.9,2.60761001]
[1754567860364,16.10062985,3835.5,3834.7,0.4325]
[1754567860698,1.60062985,3835.5,3835.4,2.60728998]
[1754567860873,1.60062985,3835.5,3835.4,3.45728998]
[1754567861080,16.10062985,3835.5,3835.4,3.45728998]
[1754567861277,16.10062985,3835.5,3835.4,2.60728998]
[1754567861503,16.10062985,3835.5,3835.4,6.90728998]
[1754567861891,16.10062985,3835.5,3835.4,3.45728998]
[1754567862599,16.10062985,3835.5,3835.4,2.60728998]
[1754567864702,16.10062985,3835.5,3835.2,2.60742561]
[1754567864863,0.428,3835.4,3835.0,4.253]
[1754567865067,5.1084,3835.4,3835.3,2.60735796]
[1754567865499,18.753,3835.4,3835.3,2.60735796]
[1754567865701,19.181,3835.4,3835.3,2.60735796]
[1754567866673,18.753,3835.4,3835.3,2.60735796]
[1754567867006,14.5,3835.4,3835.3,2.60735796]
[1754567868307,1.60062985,3835.5,3835.4,2.60728998]
[1754567868525,1.60062985,3835.5,3835.4,2.75199391]
[1754567868672,1.60062985,3835.5,3835.4,4.03449391]
[1754567868874,1.60062985,3835.5,3835.4,5.4367758]
[1754567869687,1.60062985,3835.5,3835.4,5.436745]
[1754567870121,1.60062985,3835.5,3835.4,9.68774451]
[1754567873721,4.25,3837.0,3835.5,3.0]
[1754567873923,0.4285,3836.9,3836.7,2.60640648]
[1754567874132,4.25,3837.0,3836.7,2.60640648]
[1754567874305,0.4285,3836.8,3836.7,2.60640648]
[1754567874892,0.4285,3836.8,3836.6,2.60641271]
[1754567875224,0.4285,3836.7,3836.2,2.60674625]
[1754567875718,0.4285,3836.7,3836.6,2.60647448]
[1754567875923,0.67221394,3836.7,3836.2,0.8725]
[1754567876125,0.24371394,3836.6,3836.5,2.60654242]
[1754567878721,0.24359792,3836.6,3836.5,2.60654242]
[1754567879898,0.24359792,3836.6,3835.5,2.15415866]
[1754567880101,0.24359792,3836.6,3834.6,11.14956037]
[1754567880102,0.24359792,3836.5,3836.2,2.60667924]
[1754567880333,0.24359792,3836.5,3836.3,2.60666522]
[1754567880629,0.4285,3836.4,3836.0,4.247]
[1754567880794,1.46229792,3836.3,3836.0,2.6068405]
[1754567881134,0.67208237,3836.2,3836.0,2.6068405]
[1754567881342,0.67208237,3836.2,3836.1,2.60681421]
[1754567881634,0.24358237,3836.2,3836.1,2.60681421]
[1754567881801,0.24361009,3836.8,3836.1,4.247]
[1754567882135,0.24361009,3836.7,3836.3,2.60663568]
[1754567882306,0.67211009,3836.6,3836.2,2.60672113]
[1754567882507,0.67211009,3836.5,3836.2,2.60672113]
[1754567882731,0.4285,3836.4,3836.1,4.247]
[1754567882903,0.67211009,3836.4,3836.1,6.85377323]
[1754567883505,0.67211009,3836.4,3836.2,2.60674606]
[1754567883825,0.67211009,3836.4,3836.1,6.85380166]
[1754567884009,0.4285,3836.4,3836.1,6.85380166]
[1754567884210,0.4285,3836.4,3836.2,2.60672689]
[1754567884617,0.4285,3836.4,3836.3,2.6066783]
[1754567884829,0.7902,3836.7,3836.1,6.85375757]
[1754567884830,0.24361009,3836.5,3836.2,2.60672097]
[1754567885138,0.24361009,3836.6,3836.2,2.60672097]
[1754567885304,0.24361009,3836.5,3836.1,7.72628669]
[1754567885507,0.24361009,3836.4,3836.1,7.72628669]
[1754567885707,0.67211009,3836.5,3836.1,6.85378669]
[1754567885906,0.24361009,3836.4,3836.1,6.85378669]
[1754567886303,0.67211009,3836.4,3836.1,4.247]
[1754567886521,0.67211009,3836.4,3835.9,0.8725]
[1754567886522,0.4285,3836.3,3835.9,4.246]
[1754567886726,0.4285,3836.2,3836.0,2.60686952]
[1754567886930,0.67225547,3836.2,3836.0,2.60686952]
[1754567887255,0.67225547,3836.2,3836.1,2.60681421]
[1754567887429,0.24375547,3836.4,3836.1,2.60681421]
[1754567887807,0.67225547,3836.4,3836.1,2.60681421]
[1754567888250,0.24375547,3836.3,3836.1,2.60681421]
[1754567888937,0.24375547,3836.3,3836.0,2.6068716]
[1754567889142,0.24375547,3836.3,3836.1,2.60681058]
[1754567889343,0.24375547,3836.3,3836.0,2.60685345]
[1754567890242,0.24375547,3836.3,3836.1,2.60680139]
[1754567890412,0.24375547,3836.3,3836.0,3.47936405]
[1754567890743,0.24375547,3836.2,3836.1,2.60681421]
[1754567890954,0.24375547,3836.7,3836.3,2.60663225]
[1754567891110,4.244,3836.8,3836.3,2.60663225]
[1754567891111,0.24375547,3836.6,3836.3,2.60663225]
[1754567891305,0.24375547,3836.5,3836.2,6.90672061]
[1754567891511,0.24375547,3836.4,3836.2,6.90672061]
[1754567891713,0.24375547,3836.3,3836.2,6.90672061]
[1754567892041,0.24375547,3836.3,3836.2,7.77922061]
[1754567892507,0.24375547,3836.3,3836.2,8.22452061]
[1754567892643,0.24375547,3836.3,3836.2,7.77922061]
[1754567892954,0.24375547,3836.3,3836.2,6.90672061]
[1754567893153,0.24375547,3836.3,3836.2,7.77922061]
[1754567893363,0.24375547,3836.3,3836.2,4.3]
[1754567893818,0.24375547,3836.3,3836.2,7.77924625]
[1754567894442,0.24375547,3836.3,3836.2,5.1725]
[1754567894830,0.24375547,3836.3,3836.2,4.3]
[1754567895336,0.24375547,3836.3,3836.2,6.90674625]
[1754567895725,0.4285,3836.5,3836.2,6.90674625]
[1754567895928,0.24407871,3836.4,3836.2,4.3]
[1754567896122,0.24407871,3836.3,3836.2,4.3]
[1754567896339,0.24415974,3836.3,3836.2,4.3]
[1754567896760,0.24415974,3836.3,3836.2,7.77924625]
[1754567897737,0.24415974,3836.3,3836.2,8.22454625]
[1754567898832,0.24442027,3836.3,3836.2,8.22454625]
[1754567899039,0.24441937,3836.3,3836.2,8.22454625]
[1754567899456,0.24441937,3836.3,3836.2,5.1725]
[1754567899770,0.24441937,3836.3,3836.2,7.77924625]
[1754567900589,0.24441937,3836.3,3835.5,0.001]
[1754567900590,0.67841937,3836.3,3835.5,0.001]
[1754567900745,0.24441937,3836.2,3835.7,0.8178]
[1754567900947,0.24441937,3836.1,3835.7,0.8178]
[1754567901286,0.24441937,3836.0,3835.7,4.24]
[1754567901465,0.24448793,3835.9,3835.8,3.89701809]
[1754567901639,2.60661538,3836.4,3835.8,3.89701809]
[1754567901838,2.60661538,3836.4,3835.9,4.239]
[1754567902068,2.60669887,3836.3,3835.9,5.0568]
[1754567902255,3.04069887,3836.3,3835.9,5.0568]
[1754567902438,0.24450427,3836.2,3835.9,5.0568]
[1754567902939,0.24450427,3836.2,3835.9,4.239]
[1754567902940,2.60675727,3836.2,3835.9,4.239]
[1754567903135,0.434,3836.2,3835.9,4.239]
[1754567903541,3.0407476,3836.2,3835.9,4.239]
[1754567903756,0.002,3836.7,3836.0,0.8178]
[1754567904062,0.002,3836.7,3836.1,4.7112]
[1754567904248,0.002,3836.7,3836.4,2.6066077]
[1754567904449,0.002,3836.7,3836.3,6.84465643]
[1754567904656,0.002,3836.7,3836.3,5.0558]
[1754567905083,0.24451097,3836.6,3836.3,5.0558]
[1754567905258,0.24451097,3836.5,3836.3,5.0558]
[1754567905459,0.24451097,3836.4,3836.3,5.0558]
[1754567905660,0.24451097,3836.4,3836.3,0.8178]
[1754567908056,0.24450568,3836.4,3836.3,0.8178]
[1754567908999,0.24450568,3836.4,3835.7,3.0]
[1754567909202,0.24450568,3836.3,3835.7,9.84407096]
[1754567909365,3.04062971,3836.4,3835.7,4.237]
[1754567909366,0.24450568,3836.2,3835.7,4.237]
[1754567909699,0.24450568,3836.2,3835.7,4.236]
[1754567909700,0.67850568,3836.1,3835.7,4.236]
[1754567909882,2.60695124,3835.9,3835.7,4.236]
[1754567910092,0.24450568,3835.8,3835.7,4.236]
[1754567910253,14.74450568,3835.8,3835.5,0.001]
[1754567910455,0.24450568,3835.7,3835.6,4.236]
[1754567911801,0.24450568,3835.7,3835.5,4.236]
[1754567912114,0.24450568,3835.6,3835.5,5.0538]
[1754567912414,0.24450568,3835.6,3835.5,0.8188]
[1754567912832,0.24450568,3835.6,3835.5,5.0538]
[1754567912998,0.24450568,3835.6,3835.5,4.236]
[1754567913321,0.24450568,3835.6,3835.5,0.001]
[1754567913527,0.24450568,3835.6,3835.5,4.236]
[1754567913827,14.74450568,3835.6,3835.5,0.001]
[1754567913992,19.08681384,3835.6,3835.5,0.001]
[1754567914199,20.34441384,3835.6,3835.5,0.001]
[1754567917094,20.09990816,3835.6,3835.5,0.001]
[1754567917424,20.34396383,3835.6,3835.5,0.001]
[1754567917911,19.52036383,3835.6,3835.5,0.001]
[1754567918110,20.34396383,3835.6,3835.5,0.001]
[1754567920128,19.52036383,3835.6,3835.5,0.001]
[1754567920429,23.75213535,3835.6,3835.5,0.001]
[1754567920629,19.08613535,3835.6,3835.5,0.001]
[1754567920837,18.97582719,3835.6,3835.5,0.8188]
[1754567921004,14.87422719,3835.6,3835.5,1.291]
[1754567922136,14.87422719,3835.6,3835.5,0.8188]
[1754567924036,17.48138122,3835.6,3835.5,0.001]
[1754567924213,19.40280394,3835.6,3835.5,0.001]
[1754567924627,20.22640394,3835.6,3835.5,0.001]
[1754567926323,20.22630654,3835.6,3835.5,0.001]
[1754567929313,19.98257675,3835.6,3835.5,0.001]
[1754567929534,20.22631263,3835.6,3835.5,0.001]
[1754567931443,23.22631263,3835.6,3835.5,0.001]
[1754567932139,32.04821385,3835.6,3835.5,0.001]
[1754567932635,32.04826142,3835.6,3835.5,0.001]
[1754567934843,23.2263602,3835.6,3835.5,0.001]
[1754567935008,32.04826142,3835.6,3835.5,0.001]
[1754567935520,31.80447797,3835.6,3835.5,0.001]
[1754567935722,2.60769792,3834.8,3834.7,0.7825]
[1754567935922,7.07842793,3834.8,3834.7,0.7825]
[1754567936316,21.57842793,3834.8,3834.7,0.7825]
[1754567936515,23.99703254,3834.8,3834.7,0.7825]
[1754567937443,23.99703254,3834.8,3834.6,0.001]
[1754567937444,2.60776592,3834.7,3834.6,0.001]
[1754567937748,2.85149593,3834.7,3834.6,0.001]
[1754567938514,3.30979593,3834.7,3834.6,0.001]
[1754567938822,7.09589593,3834.7,3834.6,0.001]
[1754567939027,6.76776513,3834.7,3834.6,0.001]
[1754567939412,6.30946513,3834.7,3834.6,0.001]
[1754567939813,6.76776513,3834.7,3834.6,0.001]
[1754567941019,21.26776513,3834.7,3834.6,0.001]
[1754567941849,30.08966635,3834.7,3834.6,0.001]
[1754567942030,20.80946513,3834.7,3834.6,0.001]
[1754567943436,21.81013512,3834.7,3834.6,0.001]
[1754567943754,20.80959526,3834.7,3834.6,0.001]
[1754567943918,22.03259526,3834.7,3834.6,0.8295]
[1754567944121,22.03259526,3834.7,3834.6,0.001]
[1754567944847,15.20182934,3834.7,3834.6,0.001]
[1754567945029,18.96586014,3834.7,3834.6,1.2669]
[1754567947256,18.96586014,3834.7,3834.6,0.8295]
[1754567947454,18.96486014,3834.7,3834.6,0.8295]
[1754567947752,18.96486014,3834.7,3834.6,1.2669]
[1754567948453,14.74386014,3834.7,3834.6,3.87473393]
[1754567948652,0.24386014,3834.7,3834.6,3.87473393]
[1754567948859,0.24386014,3835.1,3834.8,2.60764719]
[1754567949060,0.24386014,3835.3,3834.9,1.2659]
[1754567949250,0.24386014,3835.3,3835.1,2.60748]
[1754567949251,14.5,3835.3,3835.1,2.60748]
[1754567949439,0.2437764,3835.2,3835.1,2.60748]
[1754567949840,14.5,3835.3,3834.9,2.60760642]
[1754567949841,14.5,3835.3,3835.2,2.60742594]
[1754567950161,14.74376499,3835.3,3835.2,3.87332594]
[1754567950949,14.74376499,3835.3,3835.2,1.2659]
[1754567951732,14.74376499,3835.3,3835.2,3.87332594]
[1754567951933,14.74376499,3835.3,3835.2,1.2659]
[1754567952363,14.74378775,3835.3,3835.2,1.2659]
[1754567952536,14.98757537,3835.3,3835.2,1.2659]
[1754567952953,14.98757538,3835.3,3835.2,1.2659]
[1754567953863,1.99957292,3835.3,3834.8,4.218]
[1754567954067,0.24378763,3835.2,3834.9,0.8285]
[1754567954235,8.82190122,3835.1,3834.6,1.2669]
[1754567954437,8.82190122,3835.1,3834.6,0.8295]
[1754567954438,14.9583,3835.0,3834.6,0.8295]
[1754567954646,2.60762992,3834.9,3834.6,0.001]
[1754567954838,0.4583,3834.9,3834.6,0.001]
[1754567955066,2.60774964,3834.8,3834.6,0.001]
[1754567955257,17.10776592,3834.7,3834.6,0.001]
[1754567955464,19.57398317,3834.7,3834.6,0.001]
[1754567955658,20.27617056,3834.7,3834.6,0.001]
[1754567956375,19.49007056,3834.7,3834.6,0.001]
[1754567957841,23.24877056,3834.7,3834.6,0.001]
[1754567958268,23.70707056,3834.7,3834.6,0.001]
[1754567958473,24.49317056,3834.7,3834.6,0.001]
[1754567958781,23.70707056,3834.7,3834.6,0.001]
[1754567959873,23.24877056,3834.7,3834.6,0.001]
[1754567960543,23.68457056,3834.7,3834.6,0.001]
[1754567960752,19.46757056,3834.7,3834.6,0.001]
[1754567961076,20.24867056,3834.7,3834.6,0.001]
[1754567961478,20.00478317,3834.7,3834.6,0.001]
[1754567961774,23.24588079,3834.7,3834.6,0.001]
[1754567961981,20.63811487,3834.7,3834.6,0.001]
[1754567962179,23.2458861,3834.7,3834.6,0.7775]
[1754567962382,19.0318861,3834.7,3834.6,0.001]
[1754567962781,20.2487861,3834.7,3834.6,0.001]
[1754567962981,29.07068732,3834.7,3834.6,0.001]
[1754567965085,23.24880086,3834.7,3834.6,0.001]
[1754567965774,22.03190086,3834.7,3834.6,0.001]
[1754567966097,22.46770086,3834.7,3834.6,0.001]
[1754567966299,23.24880086,3834.7,3834.6,0.001]
[1754567967289,23.79880086,3834.7,3834.6,0.001]
[1754567968290,23.24880086,3834.7,3834.6,0.001]
[1754567968467,22.03190086,3834.7,3834.6,0.001]
[1754567968667,22.46770086,3834.7,3834.6,0.001]
[1754567968969,23.24880086,3834.7,3834.6,0.001]
[1754567969374,23.24864208,3834.7,3834.6,0.001]
[1754567969979,23.79864208,3834.7,3834.6,0.001]
[1754567970662,23.55478317,3834.7,3834.6,0.001]
[1754567970884,23.79862446,3834.7,3834.6,0.001]
[1754567971890,23.79860363,3834.7,3834.6,0.001]
[1754567972263,23.90310963,3834.7,3834.6,0.001]
[1754567974272,0.55,3834.5,3833.8,0.001]
[1754567974464,14.43021129,3833.9,3833.8,0.001]
[1754567974664,18.88203175,3833.9,3833.8,0.001]
[1754567974893,33.81783175,3833.9,3833.8,0.001]
[1754567976196,34.59533175,3833.9,3833.8,0.001]
[1754567976403,36.275449,3833.9,3833.8,0.001]
[1754567976994,37.606549,3833.9,3833.8,0.001]
[1754567977771,36.825449,3833.9,3833.8,0.001]
[1754567977968,36.825449,3833.9,3833.8,1e-08]
[1754567978179,37.606549,3833.9,3833.8,1e-08]
[1754567978374,2.60912672,3832.7,3832.6,0.13610136]
[1754567978590,15.63702794,3832.7,3832.6,0.7765]
[1754567978797,14.85250859,3832.7,3832.1,0.4473]
[1754567979000,2.60946714,3832.2,3832.1,0.4473]
[1754567979405,2.60946714,3832.2,3832.1,0.7765]
[1754567979676,2.60946714,3832.2,3832.1,1.2238]
[1754567980205,17.10946714,3832.2,3832.1,1.2238]
[1754567980768,14.5,3832.2,3832.1,1.2238]
[1754567981903,17.10946714,3832.2,3832.1,1.2238]
[1754567982672,14.5,3832.2,3832.1,1.2238]
[1754567982871,17.10946714,3832.2,3832.1,1.2238]
[1754567983276,14.5,3832.2,3832.1,1.2238]
[1754567983479,2.6090354,3832.9,3832.1,3.83333524]
[1754567983687,4.205,3833.0,3832.3,2.60938372]
[1754567983894,4.205,3833.0,3832.4,1.2238]
[1754567983895,2.60926288,3832.5,3832.4,1.2238]
[1754567984088,17.10926288,3832.5,3832.4,1.2238]
[1754567985101,17.10926288,3832.5,3832.1,0.001]
[1754567985102,2.60946714,3832.2,3832.1,0.7775]
[1754567985300,2.60946714,3832.2,3832.1,0.001]
[1754567985509,2.60946714,3832.2,3832.1,0.7775]
[1754567986419,2.60946714,3832.2,3832.1,0.001]
[1754567986731,2.60946714,3832.2,3832.1,0.7775]
[1754567987029,14.5,3832.5,3832.1,1.2248]
[1754567987217,17.10931589,3832.5,3832.2,0.4473]
[1754567987417,17.10931589,3832.5,3832.3,0.7765]
[1754567987595,14.5,3832.5,3832.4,0.4473]
[1754567987800,14.5,3832.5,3832.4,1.2238]
[1754567988001,14.5,3832.5,3832.1,0.4483]
[1754567988206,17.10926288,3832.5,3832.4,0.7765]
[1754567989531,2.60941701,3832.3,3832.1,0.001]
[1754567989705,2.60946714,3832.2,3832.1,0.4483]
[1754567990032,2.60946714,3832.2,3832.1,0.001]
[1754567990335,5.00164778,3832.2,3832.1,0.001]
[1754567990512,2.60946714,3832.2,3832.1,1.2216]
[1754567990901,2.60946714,3832.2,3832.1,0.7802]
[1754567991732,17.10946714,3832.2,3832.1,0.7802]
[1754567992141,21.31146714,3832.2,3832.1,0.001]
[1754567992303,20.83233308,3832.2,3832.1,0.7802]
[1754567993431,20.83233308,3832.2,3832.1,0.001]